bitfinex/quotes_BTCUSD_20250110
["timestamp","ask_amount","ask_price","bid_price","bid_amount"]
[1736523182323,0.41129997,93341.0,93340.0,0.00031648]
[1736523182751,0.76130173,93341.0,93340.0,4.8e-07]
[1736523182952,0.387297,93328.0,93327.0,0.0001704]
[1736523183147,0.49159676,93328.0,93327.0,0.00031671]
[1736523183730,0.214286,93333.0,93327.0,0.00031671]
[1736523183933,0.02203197,93341.0,93327.0,0.00031671]
[1736523184138,0.55317196,93328.0,93327.0,0.00031671]
[1736523184322,0.75767172,93328.0,93327.0,0.0002228]
[1736523184529,0.66879676,93328.0,93327.0,0.0002228]
[1736523184778,0.56879676,93328.0,93327.0,0.0002228]
[1736523184947,0.66879676,93328.0,93327.0,0.00012895]
[1736523185144,0.40239765,93328.0,93327.0,0.00012895]
[1736523185503,0.21427,93340.0,93327.0,0.00012895]
[1736523185623,0.05832,93358.0,93327.0,0.00012895]
[1736523185624,0.214273,93339.0,93331.0,0.01112504]
[1736523185824,0.08887496,93366.0,93331.0,0.01112504]
[1736523185825,0.214266,93342.0,93331.0,0.00412504]
[1736523186024,0.29059,93375.0,93344.0,0.00412504]
[1736523186269,0.214245,93352.0,93344.0,0.00412504]
[1736523186479,0.10429976,93372.0,93332.0,0.31858676]
[1736523186480,0.15,93351.0,93333.0,0.00012504]
[1736523186681,0.0209998,93357.0,93331.0,0.00012504]
[1736523186996,0.0209998,93357.0,93341.0,0.00012504]
[1736523187202,0.214247,93350.0,93341.0,0.00012504]
[1736523187407,0.214258,93346.0,93341.0,0.00012504]
[1736523187806,0.214254,93348.0,93341.0,0.00012504]
[1736523188008,0.214238,93354.0,93341.0,0.00012504]
[1736523188203,0.214238,93354.0,93344.0,0.00012504]
[1736523188709,0.214251,93349.0,93341.0,0.10429976]
[1736523188865,0.214253,93348.0,93341.0,0.00012504]
[1736523189069,0.001,93351.0,93328.0,0.214297]
[1736523189275,0.15,93329.0,93306.0,0.1236]
[1736523189457,0.15,93329.0,93286.0,0.1]
[1736523189458,0.023,93328.0,93293.0,0.0757]
[1736523189655,0.387297,93328.0,93293.0,0.0757]
[1736523190071,0.364297,93328.0,93303.0,0.214353]
[1736523190268,0.01523422,93329.0,93319.0,0.214317]
[1736523190477,0.214251,93349.0,93328.0,0.10429976]
[1736523190679,0.214241,93353.0,93336.0,0.213277]
[1736523190878,0.214237,93355.0,93338.0,0.214275]
[1736523191078,0.214237,93355.0,93339.0,0.10429976]
[1736523191292,0.214245,93351.0,93339.0,0.10429976]
[1736523191580,0.214216,93364.0,93345.0,0.214257]
[1736523191788,0.214217,93363.0,93346.0,0.31855576]
[1736523191989,0.214207,93368.0,93346.0,0.10429976]
[1736523192196,0.02187682,93374.0,93346.0,0.10429976]
[1736523192367,0.214224,93360.0,93347.0,0.214254]
[1736523192611,0.214224,93360.0,93348.0,0.10429976]
[1736523192829,0.214206,93368.0,93355.0,0.214234]
[1736523193036,0.214217,93364.0,93348.0,0.21425]
[1736523193247,0.023,93377.0,93342.0,0.214263]
[1736523193449,0.214192,93374.0,93343.0,0.10429976]
[1736523193667,0.214194,93373.0,93344.0,0.00107125]
[1736523193887,0.214214,93365.0,93349.0,0.214249]
[1736523194103,0.02184034,93378.0,93350.0,0.31854476]
[1736523194104,0.023,93377.0,93350.0,0.31854476]
[1736523194310,0.023,93377.0,93350.0,0.10429976]
[1736523194519,0.15,93366.0,93351.0,0.214245]
[1736523194741,0.214214,93365.0,93352.0,0.10429976]
[1736523194955,0.214207,93368.0,93352.0,0.31854076]
[1736523195389,0.023,93373.0,93352.0,0.10429976]
[1736523195595,0.003,93374.0,93352.0,0.10429976]
[1736523195803,0.003,93374.0,93354.0,0.259938]
[1736523196011,8.53e-05,93379.0,93366.0,0.214209]
[1736523196228,8.53e-05,93379.0,93367.0,0.10429976]
[1736523196467,8.53e-05,93379.0,93375.0,0.214188]
[1736523196685,8.53e-05,93379.0,93354.0,0.06007653]
[1736523196906,8.53e-05,93379.0,93360.0,0.214222]
[1736523197114,8.53e-05,93379.0,93355.0,0.10429976]
[1736523197115,0.214185,93377.0,93362.0,0.428437]
[1736523197328,0.214217,93363.0,93342.0,0.01385552]
[1736523197548,0.173,93374.0,93367.0,0.006]
[1736523197747,0.237206,93368.0,93367.0,0.006]
[1736523197964,0.023,93367.0,93343.0,0.10429976]
[1736523198133,0.214238,93354.0,93343.0,0.10429976]
[1736523198347,0.214208,93368.0,93343.0,0.10429976]
[1736523198696,0.214199,93371.0,93344.0,0.00107115]
[1736523198905,0.214185,93377.0,93363.0,0.214216]
[1736523199098,0.01390423,93379.0,93340.0,0.08224631]
[1736523199314,0.01390423,93379.0,93360.0,0.001]
[1736523199315,0.214211,93366.0,93360.0,0.001]
[1736523199541,0.214211,93366.0,93354.0,0.214238]
[1736523199888,0.214211,93366.0,93355.0,0.10429976]
[1736523200059,0.002,93373.0,93357.0,0.214231]
[1736523200282,0.002,93373.0,93355.0,0.10429976]
[1736523200283,0.002,93373.0,93363.0,0.10429976]
[1736523200586,8.53e-05,93379.0,93372.0,0.10429976]
[1736523200725,8.53e-05,93379.0,93378.0,0.66848276]
[1736523201072,8.53e-05,93434.0,93410.0,0.293409]
[1736523201207,8.53e-05,93434.0,93410.0,0.64770876]
[1736523201466,8.53e-05,93434.0,93433.0,0.214057]
[1736523201680,8.53e-05,93434.0,93433.0,0.31835676]
[1736523202072,0.00057289,93434.0,93433.0,0.31835676]
[1736523203160,8.53e-05,93467.0,93443.0,0.314034]
[1736523203363,0.00023144,93444.0,93443.0,0.41833376]
[1736523203599,0.00023144,93444.0,93443.0,0.31833376]
[1736523204242,0.00023144,93444.0,93443.0,0.31333376]
[1736523205869,0.00023144,93444.0,93443.0,0.32233376]
[1736523206274,0.00123144,93444.0,93443.0,0.31933376]
[1736523206669,0.00123144,93444.0,93443.0,0.41333376]
[1736523206670,0.00023144,93444.0,93443.0,0.41333376]
[1736523207077,0.00023144,93444.0,93443.0,0.44154926]
[1736523207626,0.00023144,93444.0,93443.0,0.43654926]
[1736523207849,8.53e-05,93467.0,93461.0,0.213993]
[1736523208073,8.53e-05,93467.0,93461.0,0.79179276]
[1736523208904,8.52e-05,93473.0,93472.0,0.1]
[1736523209126,8.53e-05,93481.0,93478.0,0.35]
[1736523209365,0.00279025,93500.0,93481.0,0.230147]
[1736523209568,0.00279025,93500.0,93485.0,0.25429976]
[1736523209768,0.00023139,93486.0,93485.0,0.25429976]
[1736523210256,0.00023139,93486.0,93485.0,0.10429976]
[1736523210457,0.00023139,93486.0,93485.0,0.1053692]
[1736523210660,0.00023139,93486.0,93485.0,0.10429976]
[1736523211221,0.00113791,93486.0,93485.0,0.12029976]
[1736523212612,8.53e-05,93517.0,93503.0,0.413895]
[1736523212613,0.03774999,93510.0,93503.0,0.413895]
[1736523212786,0.03774999,93510.0,93509.0,0.41818276]
[1736523213030,0.03774999,93510.0,93509.0,0.51818276]
[1736523213239,1e-07,93528.0,93526.0,0.1]
[1736523213441,1e-07,93528.0,93527.0,1.01510944]
[1736523213612,0.00014624,93528.0,93527.0,1.01404076]
[1736523214050,0.00014624,93528.0,93527.0,2.52552076]
[1736523214267,0.001753,93567.0,93564.0,0.213756]
[1736523214470,0.00224032,93567.0,93566.0,0.213752]
[1736523214684,0.00224032,93567.0,93566.0,0.31805176]
[1736523215806,0.00224032,93567.0,93566.0,0.59045176]
[1736523216006,0.00224032,93567.0,93566.0,0.69045176]
[1736523216211,0.00224032,93567.0,93566.0,0.69945176]
[1736523216416,0.00224032,93567.0,93566.0,0.61545176]
[1736523216837,0.00224032,93567.0,93566.0,0.62445176]
[1736523217048,0.00224032,93567.0,93566.0,0.71545176]
[1736523217536,0.00224032,93567.0,93566.0,0.72045176]
[1736523217738,0.00224032,93567.0,93566.0,0.72945176]
[1736523218114,0.00224032,93567.0,93566.0,0.72445176]
[1736523218301,0.00224032,93567.0,93566.0,0.73593176]
[1736523218497,0.00224032,93567.0,93566.0,0.72445176]
[1736523218699,0.00224032,93567.0,93566.0,0.37445176]
[1736523219102,0.00224032,93567.0,93566.0,0.32705176]
[1736523219511,0.00224032,93567.0,93566.0,0.32505176]
[1736523219710,0.00224032,93567.0,93566.0,0.58405176]
[1736523219922,0.00224032,93567.0,93566.0,0.68405176]
[1736523220122,0.00224032,93567.0,93566.0,0.66805176]
[1736523220350,3.2e-07,93567.0,93566.0,0.68205176]
[1736523220555,0.0753,93630.0,93599.0,0.213677]
[1736523220780,0.00018682,93600.0,93599.0,0.31797676]
[1736523223085,0.00018682,93600.0,93599.0,0.32297676]
[1736523223714,0.00018682,93600.0,93599.0,0.32697676]
[1736523223924,0.00018682,93600.0,93599.0,0.32097676]
[1736523224148,2e-07,93618.0,93617.0,0.313636]
[1736523224366,2e-07,93618.0,93617.0,0.52937576]
[1736523224566,2e-07,93618.0,93617.0,0.57937576]
[1736523224814,2e-07,93618.0,93617.0,0.56793576]
[1736523225009,2e-07,93618.0,93617.0,0.31793576]
[1736523225431,2e-07,93618.0,93617.0,0.33139277]
[1736523225793,2e-07,93618.0,93617.0,0.58139277]
[1736523226018,2e-07,93618.0,93617.0,0.29283277]
[1736523226177,2e-07,93618.0,93617.0,0.28139277]
[1736523226382,2e-07,93618.0,93617.0,1.78139277]
[1736523226586,2e-07,93618.0,93617.0,0.29039277]
[1736523226845,2e-07,93618.0,93617.0,0.38539277]
[1736523227268,2e-07,93618.0,93617.0,0.39439277]
[1736523227471,2e-07,93618.0,93617.0,0.29283277]
[1736523227669,2e-07,93618.0,93617.0,0.28139277]
[1736523227871,2e-07,93618.0,93617.0,0.28739277]
[1736523228097,2e-07,93618.0,93617.0,0.27393576]
[1736523228297,2e-07,93618.0,93617.0,0.11029976]
[1736523228920,2e-07,93618.0,93617.0,0.33293576]
[1736523229077,2e-07,93618.0,93617.0,0.32693576]
[1736523229453,2e-07,93618.0,93617.0,0.31793576]
[1736523229589,2e-07,93618.0,93617.0,0.33393576]
[1736523229794,2e-07,93618.0,93617.0,0.11129976]
[1736523229990,2e-07,93618.0,93617.0,0.10429976]
[1736523230191,2e-07,93618.0,93617.0,0.11329976]
[1736523230393,2e-07,93618.0,93617.0,0.216636]
[1736523230645,2e-07,93618.0,93617.0,0.003]
[1736523230823,0.1730002,93618.0,93617.0,0.012]
[1736523231428,0.1500002,93618.0,93617.0,0.012]
[1736523231927,2e-07,93618.0,93617.0,0.012]
[1736523232122,2e-07,93618.0,93617.0,0.003]
[1736523232333,2e-07,93618.0,93610.0,0.213651]
[1736523232541,2e-07,93618.0,93617.0,0.009]
[1736523232710,2e-07,93618.0,93617.0,0.10729976]
[1736523233120,2e-07,93618.0,93617.0,0.007]
[1736523233331,2e-07,93618.0,93617.0,0.11129976]
[1736523234057,2e-07,93618.0,93617.0,0.10429976]
[1736523234288,2e-07,93618.0,93617.0,0.10729976]
[1736523234471,2e-07,93618.0,93617.0,0.12072564]
[1736523235258,2e-07,93618.0,93617.0,0.12972564]
[1736523235670,2e-07,93618.0,93617.0,0.12672564]
[1736523236166,2e-07,93618.0,93617.0,0.12372564]
[1736523236369,2e-07,93618.0,93617.0,0.11772564]
[1736523236574,2e-07,93618.0,93617.0,0.12672564]
[1736523237143,2e-07,93618.0,93617.0,0.1277936]
[1736523237341,2e-07,93618.0,93617.0,0.13272564]
[1736523237858,2e-07,93618.0,93617.0,0.11929976]
[1736523238266,2e-07,93618.0,93617.0,0.11029976]
[1736523238701,2e-07,93618.0,93617.0,0.009]
[1736523238906,2e-07,93618.0,93580.0,0.30663884]
[1736523239131,2e-07,93618.0,93617.0,0.004]
[1736523239357,2e-07,93618.0,93617.0,0.012]
[1736523239531,0.213636,93617.0,93598.0,0.213679]
[1736523239754,0.21364,93615.0,93600.0,0.213675]
[1736523239950,0.02129691,93618.0,93601.0,0.10429976]
[1736523240186,0.213651,93611.0,93601.0,0.10429976]
[1736523240324,0.023,93613.0,93602.0,0.21367]
[1736523240523,2e-07,93618.0,93603.0,0.10429976]
[1736523240724,0.15,93616.0,93607.0,0.213657]
[1736523241041,2e-07,93618.0,93615.0,0.21364]
[1736523241245,2e-07,93618.0,93617.0,0.213636]
[1736523241542,2e-07,93618.0,93617.0,0.31793576]
[1736523241742,2e-07,93618.0,93598.0,0.002]
[1736523241905,2e-07,93618.0,93617.0,0.008]
[1736523242354,2e-07,93618.0,93604.0,0.213664]
[1736523242557,2e-07,93618.0,93617.0,0.009]
[1736523242760,2e-07,93618.0,93617.0,0.11329976]
[1736523242960,2e-07,93618.0,93617.0,0.10429976]
[1736523243307,2e-07,93618.0,93617.0,0.11229976]
[1736523243488,2e-07,93618.0,93617.0,0.10429976]
[1736523243691,2e-07,93618.0,93590.0,0.00014613]
[1736523243890,2e-07,93618.0,93617.0,0.01]
[1736523244088,2e-07,93618.0,93617.0,0.005]
[1736523245365,2e-07,93618.0,93609.0,0.213652]
[1736523245753,2e-07,93618.0,93617.0,0.002]
[1736523245962,2e-07,93618.0,93617.0,0.10629976]
[1736523246282,2e-07,93618.0,93617.0,0.10536781]
[1736523246729,2e-07,93618.0,93617.0,0.10429976]
[1736523247147,2e-07,93618.0,93617.0,0.11336779]
[1736523247413,2e-07,93618.0,93617.0,0.10536779]
[1736523247807,2e-07,93618.0,93617.0,0.11436779]
[1736523248256,2e-07,93618.0,93617.0,0.12791712]
[1736523249215,2e-07,93618.0,93617.0,0.1651196]
[1736523249735,2e-07,93618.0,93617.0,0.2521196]
[1736523249949,2e-07,93618.0,93617.0,0.36005157]
[1736523250187,2e-07,93618.0,93617.0,0.25605157]
[1736523250406,2e-07,93618.0,93617.0,0.15605157]
[1736523250644,2e-07,93618.0,93617.0,0.16611952]
[1736523250895,2e-07,93618.0,93617.0,0.13291704]
[1736523251130,0.21355,93655.0,93620.0,0.19746486]
[1736523251369,0.21355,93655.0,93640.0,0.213582]
[1736523251599,0.24636139,93672.0,93647.0,0.213565]
[1736523251839,0.173,93671.0,93641.0,0.10429976]
[1736523252122,0.213563,93650.0,93637.0,0.213588]
[1736523252575,0.213552,93654.0,93633.0,0.213598]
[1736523252809,0.213552,93654.0,93617.0,0.02254933]
[1736523252810,0.213606,93631.0,93617.0,0.02254933]
[1736523253058,0.1,93641.0,93594.0,0.0461]
[1736523253258,0.0764,93635.0,93601.0,0.213671]
[1736523253394,0.21364,93616.0,93602.0,0.10429976]
[1736523253595,0.21364,93616.0,93580.0,0.19746486]
[1736523253596,0.023,93618.0,93561.0,0.2]
[1736523253799,0.023,93612.0,93582.0,0.213716]
[1736523254063,0.023,93610.0,93583.0,0.10429976]
[1736523254180,0.213688,93595.0,93583.0,0.10429976]
[1736523254388,0.173,93609.0,93579.0,0.00031613]
[1736523254619,0.15,93609.0,93580.0,0.10429976]
[1736523254839,0.023,93608.0,93580.0,0.10429976]
[1736523255042,0.213696,93591.0,93580.0,0.10429976]
[1736523255250,0.213688,93595.0,93580.0,0.10429976]
[1736523255447,0.213683,93597.0,93580.0,0.10429976]
[1736523255661,0.173,93606.0,93580.0,0.10429976]
[1736523255885,0.023,93606.0,93579.0,0.00031613]
[1736523256091,0.023,93604.0,93579.0,0.10461589]
[1736523256356,0.023,93606.0,93579.0,0.10461589]
[1736523256556,0.023,93598.0,93579.0,0.10461589]
[1736523256756,0.427382,93593.0,93579.0,0.10461589]
[1736523256903,0.213691,93593.0,93579.0,0.10461589]
[1736523257337,0.213691,93593.0,93579.0,0.31833789]
[1736523257581,0.213685,93596.0,93579.0,0.10461589]
[1736523257893,0.213695,93592.0,93579.0,0.10461589]
[1736523258371,0.213717,93582.0,93579.0,0.00231613]
[1736523259369,0.213716,93582.0,93579.0,0.00231613]
[1736523259580,0.213706,93587.0,93579.0,0.00031613]
[1736523259708,0.213706,93587.0,93579.0,0.00131613]
[1736523260299,0.213716,93582.0,93579.0,0.00131613]
[1736523260532,0.213716,93582.0,93579.0,0.00831613]
[1736523260791,0.0127604,93596.0,93579.0,0.00131613]
[1736523260792,0.213709,93585.0,93579.0,0.00131613]
[1736523261069,0.213709,93585.0,93579.0,0.00031613]
[1736523261327,0.21372,93580.0,93579.0,0.00031613]
[1736523261846,0.29522,93580.0,93579.0,0.00031613]
[1736523262110,0.42251976,93580.0,93579.0,0.00031613]
[1736523262382,0.68391976,93580.0,93579.0,0.00031613]
[1736523262632,0.84369725,93580.0,93579.0,0.00031613]
[1736523262854,0.46617912,93580.0,93579.0,0.00331613]
[1736523263071,0.4575273,93580.0,93579.0,0.00031613]
[1736523263239,0.4689273,93580.0,93579.0,0.00031613]
[1736523263453,0.25422754,93580.0,93579.0,0.00031613]
[1736523263655,0.2315,93580.0,93579.0,0.00031613]
[1736523263863,0.2335,93580.0,93579.0,0.00031613]
[1736523264106,0.2575,93580.0,93579.0,0.00031613]
[1736523264337,0.0130057,93585.0,93566.0,0.213751]
[1736523264537,0.00014588,93580.0,93568.0,0.213748]
[1736523264766,0.00014588,93580.0,93567.0,0.10429976]
[1736523264767,0.213723,93579.0,93567.0,0.10429976]
[1736523264977,0.00114588,93580.0,93558.0,0.21377]
[1736523265176,0.00114588,93580.0,93560.0,0.427531]
[1736523265401,0.00114588,93580.0,93554.0,0.21378]
[1736523265606,0.213741,93572.0,93556.0,0.213775]
[1736523265718,0.023,93579.0,93557.0,0.10429976]
[1736523265919,0.213758,93564.0,93547.0,0.213794]
[1736523266132,0.213751,93567.0,93548.0,0.10429976]
[1736523266338,0.213751,93567.0,93549.0,0.427582]
[1736523266591,0.213751,93567.0,93553.0,0.213781]
[1736523267213,0.21376,93563.0,93550.0,0.10429976]
[1736523267418,0.21373,93576.0,93541.0,0.213808]
[1736523267419,0.173,93576.0,93541.0,0.213808]
[1736523267639,0.00014588,93580.0,93536.0,0.213819]
[1736523267640,0.386739,93572.0,93536.0,0.213819]
[1736523267845,0.023,93569.0,93541.0,0.213809]
[1736523267979,0.213764,93561.0,93543.0,0.213805]
[1736523268179,0.02160642,93567.0,93549.0,0.002]
[1736523268570,0.213755,93565.0,93549.0,0.215791]
[1736523268836,0.15,93570.0,93557.0,0.213772]
[1736523269068,0.213746,93569.0,93553.0,0.213781]
[1736523269379,0.21375,93567.0,93551.0,0.213785]
[1736523269582,0.21375,93567.0,93551.0,0.31808476]
[1736523269987,0.21375,93567.0,93551.0,0.31308476]
[1736523270193,0.001,93570.0,93552.0,0.10429976]
[1736523270397,0.427492,93569.0,93552.0,0.10429976]
[1736523270599,0.213748,93568.0,93554.0,0.213779]
[1736523270798,0.2267314,93573.0,93547.0,0.213796]
[1736523270799,0.236739,93572.0,93547.0,0.213796]
[1736523271020,0.213753,93566.0,93552.0,0.213783]
[1736523271222,0.213776,93556.0,93551.0,0.001]
[1736523271475,0.023,93572.0,93551.0,0.001]
[1736523271677,0.023,93570.0,93551.0,0.001]
[1736523271918,0.023,93562.0,93544.0,0.213802]
[1736523272125,0.001,93567.0,93536.0,0.21382]
[1736523272270,0.001,93567.0,93538.0,0.213814]
[1736523272470,0.313739,93572.0,93527.0,0.0122026]
[1736523272471,0.1,93562.0,93527.0,0.0122026]
[1736523272673,0.213802,93545.0,93523.0,0.214019]
[1736523272877,0.213802,93545.0,93528.0,0.213838]
[1736523273082,0.427603,93545.0,93523.0,0.214019]
[1736523273283,0.213801,93545.0,93527.0,0.21384]
[1736523273654,0.22589409,93553.0,93535.0,0.213821]
[1736523273880,0.00014586,93571.0,93543.0,0.10429976]
[1736523274080,0.213746,93569.0,93543.0,0.10429976]
[1736523274306,0.173,93568.0,93549.0,0.213789]
[1736523274479,0.21376,93563.0,93549.0,0.213789]
[1736523274684,0.21376,93563.0,93545.0,0.2138]
[1736523274899,0.21376,93563.0,93547.0,0.213796]
[1736523275085,0.21376,93563.0,93547.0,0.31809576]
[1736523275286,0.42752,93563.0,93547.0,0.31809576]
[1736523275487,0.213797,93547.0,93543.0,0.001]
[1736523275687,0.427595,93547.0,93543.0,0.001]
[1736523276478,0.427595,93547.0,93542.0,0.00017]
[1736523276479,0.023,93544.0,93542.0,0.00017]
[1736523276682,0.42140476,93543.0,93542.0,0.00017]
[1736523276889,0.317105,93543.0,93542.0,0.00017]
[1736523277727,0.01219157,93547.0,93542.0,0.00017]
[1736523278018,0.213779,93555.0,93542.0,0.00017]
[1736523278219,0.001,93543.0,93542.0,0.00017]
[1736523278552,0.39977886,93543.0,93542.0,0.00017]
[1736523278780,0.37829976,93543.0,93542.0,0.00017]
[1736523278989,0.213848,93524.0,93523.0,0.00017]
[1736523279188,0.213871,93514.0,93495.0,0.213914]
[1736523279360,0.023,93526.0,93501.0,0.2139]
[1736523279730,0.213862,93518.0,93502.0,0.10429976]
[1736523279917,0.023,93517.0,93502.0,0.10429976]
[1736523280326,0.023,93515.0,93502.0,0.10429976]
[1736523280552,0.023,93515.0,93502.0,0.31868508]
[1736523280731,0.023,93515.0,93502.0,0.10478708]
[1736523280941,0.023,93516.0,93502.0,0.31868508]
[1736523281152,0.023,93520.0,93505.0,0.21389]
[1736523281352,0.023,93520.0,93502.0,0.10878708]
[1736523281555,0.15,93524.0,93502.0,0.10878708]
[1736523281556,0.213872,93514.0,93502.0,0.10878708]
[1736523281856,0.213869,93515.0,93502.0,0.00048732]
[1736523282058,0.023,93521.0,93502.0,0.00048732]
[1736523282282,0.02156919,93524.0,93502.0,0.00048732]
[1736523282283,0.15,93522.0,93502.0,0.00048732]
[1736523282487,0.15,93505.0,93502.0,0.00048732]
[1736523282694,0.173,93503.0,93502.0,0.00048732]
[1736523283103,0.173,93503.0,93502.0,0.00448732]
[1736523283260,0.173,93503.0,93502.0,0.00048732]
[1736523283873,0.024,93503.0,93502.0,0.00048732]
[1736523284280,0.024,93503.0,93502.0,0.00348732]
[1736523284881,0.023,93503.0,93502.0,0.00348732]
[1736523285667,0.0122033,93507.0,93502.0,0.00348732]
[1736523285871,0.213877,93512.0,93502.0,0.00348732]
[1736523285872,0.213885,93509.0,93502.0,0.00348732]
[1736523286072,0.023,93505.0,93502.0,0.00348732]
[1736523286584,0.023,93507.0,93502.0,0.00048732]
[1736523287001,0.023,93507.0,93502.0,0.00248732]
[1736523287191,0.15,93511.0,93502.0,0.00048732]
[1736523287192,0.023,93505.0,93502.0,0.00048732]
[1736523287420,0.15,93511.0,93502.0,0.00048732]
[1736523287763,0.01238466,93525.0,93503.0,0.10429976]
[1736523287917,0.213848,93524.0,93509.0,0.213881]
[1736523288118,0.15,93521.0,93509.0,0.213881]
[1736523288318,0.213867,93516.0,93502.0,0.00248732]
[1736523288521,0.023,93520.0,93503.0,0.213896]
[1736523289160,0.023,93518.0,93502.0,0.00248732]
[1736523289358,0.15,93521.0,93507.0,0.213886]
[1736523289558,0.173,93519.0,93507.0,0.427773]
[1736523289797,0.173,93519.0,93511.0,0.213877]
[1736523290232,0.173,93519.0,93507.0,0.213886]
[1736523290438,0.173,93519.0,93505.0,0.213892]
[1736523290439,0.386862,93519.0,93505.0,0.213892]
[1736523290662,0.386862,93519.0,93508.0,0.213883]
[1736523291066,0.386862,93519.0,93511.0,0.002]
[1736523291273,0.173,93519.0,93508.0,0.213883]
[1736523291428,0.173,93519.0,93512.0,0.213876]
[1736523291628,0.023,93517.0,93508.0,0.213883]
[1736523291839,0.023,93517.0,93503.0,0.213896]
[1736523292047,0.023,93515.0,93503.0,0.427792]
[1736523292244,0.023,93515.0,93503.0,0.213896]
[1736523292477,0.023,93520.0,93502.0,0.00048732]
[1736523292685,0.023,93508.0,93502.0,0.00048732]
[1736523292882,0.15,93521.0,93502.0,0.10478708]
[1736523293095,0.15,93521.0,93511.0,0.213877]
[1736523293500,0.023,93520.0,93511.0,0.213877]
[1736523294181,0.023,93520.0,93509.0,0.208882]
[1736523294925,0.001,93520.0,93511.0,0.001]
[1736523295132,0.001,93520.0,93512.0,0.10429976]
[1736523295463,0.001,93520.0,93517.0,0.213864]
[1736523296073,0.001,93520.0,93517.0,0.427728]
[1736523296307,0.023,93528.0,93518.0,0.21386]
[1736523296503,0.001,93520.0,93518.0,0.21386]
[1736523297091,0.15,93530.0,93518.0,0.427721]
[1736523297315,0.001,93520.0,93519.0,0.21386]
[1736523297595,0.001,93520.0,93518.0,0.21386]
[1736523297596,0.173,93525.0,93518.0,0.001]
[1736523297799,0.213844,93526.0,93518.0,0.001]
[1736523297800,0.273,93519.0,93518.0,0.001]
[1736523298005,0.386896,93503.0,93495.0,0.5471]
[1736523298457,0.49119576,93503.0,93495.0,0.5471]
[1736523298669,0.386896,93503.0,93495.0,0.5471]
[1736523298884,0.173,93503.0,93495.0,0.5471]
[1736523300211,0.37217669,93503.0,93495.0,0.5471]
[1736523300411,0.37729976,93503.0,93495.0,0.5471]
[1736523300956,0.37929976,93503.0,93502.0,0.00248732]
[1736523301093,0.27929976,93503.0,93502.0,0.00048732]
[1736523301324,0.37729976,93503.0,93495.0,0.51538574]
[1736523301524,0.35,93486.0,93485.0,0.00017]
[1736523301729,0.023,93469.0,93434.0,0.214053]
[1736523301933,0.023,93469.0,93431.0,0.0458]
[1736523301934,0.173,93467.0,93431.0,0.0458]
[1736523302196,0.173,93465.0,93464.0,0.00014619]
[1736523302580,0.386983,93465.0,93464.0,0.00014619]
[1736523303237,0.023,93466.0,93464.0,0.00014619]
[1736523303437,0.386983,93465.0,93464.0,0.00014619]
[1736523303646,0.173,93465.0,93464.0,0.00014619]
[1736523303857,0.023,93465.0,93464.0,0.00414619]
[1736523304073,0.01270287,93476.0,93464.0,0.00414619]
[1736523304283,0.213943,93483.0,93464.0,0.00114619]
[1736523304481,0.173,93480.0,93464.0,0.21513119]
[1736523304685,0.173,93480.0,93464.0,0.21613119]
[1736523304897,0.01246924,93483.0,93465.0,0.10429976]
[1736523305109,0.213931,93488.0,93466.0,0.213981]
[1736523305324,0.1,93506.0,93467.0,0.10429976]
[1736523305525,0.36263238,93562.0,93469.0,0.213974]
[1736523305526,0.2262609,93495.0,93469.0,0.213974]
[1736523305735,0.2262609,93495.0,93464.0,0.00221598]
[1736523305736,0.0114,93510.0,93470.0,0.10536954]
[1736523305921,0.213905,93500.0,93470.0,0.10536954]
[1736523306116,0.023,93505.0,93471.0,0.213969]
[1736523306323,0.236896,93503.0,93472.0,0.10429976]
[1736523306532,0.213951,93480.0,93465.0,0.213983]
[1736523306737,0.213951,93480.0,93465.0,0.31828276]
[1736523306936,0.11569976,93502.0,93465.0,0.10429976]
[1736523306937,0.023,93482.0,93465.0,0.10429976]
[1736523307144,0.15,93490.0,93466.0,0.10429976]
[1736523307297,0.1,93515.0,93466.0,0.10429976]
[1736523307298,0.001,93505.0,93467.0,0.00106977]
[1736523307520,0.001,93476.0,93475.0,0.21396]
[1736523307725,0.001,93476.0,93475.0,0.31825976]
[1736523307926,0.023,93501.0,93488.0,0.21393]
[1736523308152,0.02169594,93507.0,93475.0,0.10429976]
[1736523308153,0.001,93480.0,93475.0,0.10429976]
[1736523308504,0.001,93480.0,93466.0,0.001]
[1736523308707,0.001,93480.0,93475.0,0.213959]
[1736523308927,0.001,93480.0,93476.0,0.10429976]
[1736523309144,0.001,93480.0,93477.0,0.427912]
[1736523309348,0.001,93480.0,93479.0,0.213951]
[1736523309551,0.001,93480.0,93471.0,0.213968]
[1736523309767,0.0114,93506.0,93472.0,0.10429976]
[1736523310048,0.01221061,93499.0,93488.0,0.21393]
[1736523310274,0.15,93498.0,93475.0,0.009]
[1736523310539,0.173,93488.0,93451.0,0.0807]
[1736523310776,0.001,93480.0,93479.0,0.008]
[1736523310988,0.001,93480.0,93453.0,0.214011]
[1736523310989,0.15,93467.0,93453.0,0.214011]
[1736523311191,0.1,93484.0,93453.0,0.214011]
[1736523311192,0.0114,93490.0,93465.0,0.10429976]
[1736523311435,0.213928,93489.0,93488.0,0.002]
[1736523311635,0.213979,93467.0,93453.0,0.21401]
[1736523311847,0.023,93466.0,93458.0,0.213999]
[1736523312060,0.15,93476.0,93453.0,0.21401]
[1736523312061,0.213974,93469.0,93453.0,0.21401]
[1736523312269,0.173,93468.0,93449.0,0.214018]
[1736523312376,0.15,93468.0,93449.0,0.214018]
[1736523312590,0.236979,93467.0,93453.0,0.214009]
[1736523312796,0.236979,93467.0,93448.0,0.214191]
[1736523312797,0.236983,93465.0,93448.0,0.214191]
[1736523313050,0.236983,93465.0,93448.0,0.00017]
[1736523313442,0.386983,93465.0,93448.0,0.00017]
[1736523313642,0.40852028,93465.0,93448.0,0.00017]
[1736523314171,0.173,93465.0,93449.0,0.214019]